fUSD/lending_fUSD_20240114
["ID","MTS","AMOUNT","RATE_DAILY","PERIOD"]
[311594838,1705260646858,-507.66341396,0.00023,2]
[311594839,1705260646874,-495.06200404,0.00023,2]
[311594840,1705260646886,-1095.76779495,0.00023,2]
[311594841,1705260646902,-74507.21853825,0.00023,2]
[311594842,1705260646926,-5981.164186,0.00023,2]
[311594843,1705260646938,-604.99816099,0.00023,2]
[311594844,1705260646953,-473.05077416,0.00023,2]
[311594845,1705260646999,-768.0,0.00023,2]
[311594846,1705260647010,-347.44581063,0.00023,2]
[311594847,1705260647022,-649.25962287,0.00023,2]
[311594848,1705260647050,-267.12499998,0.00023,2]
[311594849,1705260647062,-3989.05684023,0.00023,2]
[311594851,1705260647074,-335.30570427,0.00023,2]
[311594853,1705260647085,-551.28542087,0.00023,2]
[311594854,1705260647108,-25149.99999974,0.00023,2]
[311594855,1705260647120,-866.29924,0.00023,2]
[311594856,1705260647131,-3029.35537805,0.00023,2]
[311594858,1705260647143,-373.99662793,0.00023,2]
[311594859,1705260647155,-252.25200001,0.00023,2]
[311594860,1705260663722,207.0,0.00021521,2]
[311594861,1705260670682,1448.82414845,0.0003,120]
[311594862,1705260705442,506.33180245,0.00021,2]
[311594863,1705260706415,193.78572457,0.00022078,2]
[311594864,1705260706439,91.20239512,0.00022078,2]
[311594865,1705260716278,201.67811599,0.0003,120]
[311594866,1705260772843,360.33822996,0.00018398,2]
[311594867,1705260844431,204.0,0.00021521,2]
[311594868,1705260879010,166.53,0.00021921,2]
[311594869,1705260880412,158.77,0.00022141,2]
[311594870,1705260888599,275.49,0.00021908,2]
[311594871,1705260959852,392.41,0.00019988,2]
[311594872,1705260964435,169.68,0.00017525,2]
[311594873,1705260982079,2571.9,0.00021887,2]
[311594874,1705261019872,453.92,0.00021887,2]
[311594875,1705261026058,157.16,0.00022061,2]
[311594876,1705261049477,500.0,0.00022,2]
[311594877,1705261080199,250.0,0.00021841,2]
[311594878,1705261081212,500.0,0.00021841,2]
[311594879,1705261095224,462.26,0.00021825,2]
[311594880,1705261168576,715.15937492,0.00021832,2]
[311594881,1705261168601,817.65062508,0.00021832,2]
[311594882,1705261173135,1184.18,0.00021848,2]
[311594883,1705261177628,2318.28,0.00022025,2]
[311594884,1705261195511,150.13,0.00021856,2]
[311594885,1705261195743,150.13,0.00022129,2]
[311594886,1705261248295,2000.0,0.00021812,2]
[311594887,1705261255958,1033.12,0.00021812,2]
[311594888,1705261296491,7058.81105677,0.0003,120]
[311594889,1705261316468,7058.81105677,0.0003,120]
[311594890,1705261336510,6892.70432266,0.0003,120]
[311594891,1705261336843,156.43,0.00022037,2]
[311594892,1705261343567,10000.0,0.00021918,2]
[311594893,1705261353852,205.0,0.00022086,2]
[311594894,1705261356584,5252.58160905,0.0003,120]
[311594895,1705261372496,5252.58160905,0.0003,120]
[311594896,1705261392033,246.50580772,0.00022201,2]
[311594897,1705261414053,208.52721044,0.00022201,2]
[311594898,1705261414592,1177.41427021,0.00022201,2]
[311594899,1705261415293,405.04036267,0.00021846,2]
[311594900,1705261417121,2000.0,0.00021803,2]
[311594901,1705261417148,8208.54503547,0.00021803,2]
[311594902,1705261417177,181633.4901925,0.00021803,2]
[311594903,1705261417205,203383.73477203,0.00021803,2]
[311594904,1705261422441,155.0,0.00021845,2]
[311594905,1705261456487,5873.1873412,0.0003,120]
[311594906,1705261499579,152.07,0.00021901,2]
[311594907,1705261499777,152.07,0.00022005,2]
[311594908,1705261506519,636.86,0.00021706,2]
[311594909,1705261519827,1116.08314101,0.00022081,2]
[311594910,1705261546499,3712.66296281,0.0003,120]
[311594911,1705261563288,500.0,0.0002148,2]
[311594912,1705261566795,527.51955933,0.00022099,2]
[311594913,1705261566862,161.66192556,0.00022099,2]
[311594914,1705261566987,166.01,0.00021649,2]
[311594915,1705261568357,4623.14199213,0.00022099,2]
[311594916,1705261569356,542.84892039,0.00022099,2]
[311594917,1705261570586,155.0,0.00022099,2]
[311594918,1705261570618,236.27638756,0.00022099,2]
[311594919,1705261571514,171.76196132,0.00022099,2]
[311594920,1705261573754,23900.0,0.00021668,2]
[311594921,1705261574387,417.80289953,0.00022099,2]
[311594922,1705261574419,155.0,0.00022099,2]
[311594923,1705261574647,1202.71070965,0.00022099,2]
[311594924,1705261575008,766.13795636,0.00022099,2]
[311594925,1705261576845,336.87437051,0.00022099,2]
[311594926,1705261577255,354.27308638,0.00022099,2]
[311594927,1705261577764,155.0,0.00022099,2]
[311594928,1705261580332,2899.70304819,0.00022099,2]
[311594929,1705261580742,244.75352941,0.00022099,2]
[311594930,1705261582443,302.03531833,0.00022099,2]
[311594931,1705261584217,155.0,0.00022099,2]
[311594932,1705261586333,155.0,0.00022099,2]
[311594933,1705261588805,217.81068994,0.00022099,2]
[311594934,1705261589469,246.50580772,0.00022099,2]
[311594935,1705261589695,155.0,0.00022099,2]
[311594936,1705261591332,628.42706181,0.00022099,2]
[311594937,1705261592131,532.51217277,0.00022099,2]
[311594938,1705261592205,279.12829381,0.00022099,2]
[311594939,1705261592233,516.05068541,0.00022099,2]
[311594940,1705261592488,361.45556358,0.00022099,2]
[311594941,1705261593124,376.61875021,0.00022099,2]
[311594942,1705261593592,497.01,0.00021706,2]
[311594943,1705261593871,278.87214514,0.00022099,2]
[311594944,1705261594369,155.0,0.00022099,2]
[311594945,1705261596427,4269.32574779,0.00022099,2]
[311594946,1705261598033,475.58,0.00019788,2]
[311594947,1705261598225,475.58,0.00022052,2]
[311594948,1705261598620,2605.01077955,0.00022099,2]
[311594949,1705261598909,400.25276388,0.00022099,2]
[311594950,1705261601186,269.80513324,0.00022099,2]
[311594951,1705261602096,1177.41427021,0.00022099,2]
[311594952,1705261602744,363.81023427,0.00022099,2]
[311594953,1705261605094,651.18552596,0.00022099,2]
[311594954,1705261606302,155.0,0.00022099,2]
[311594955,1705261606706,2618.24633513,0.00022099,2]
[311594956,1705261607861,230.42248665,0.00022099,2]
[311594957,1705261608107,2137.87268645,0.00022099,2]
[311594958,1705261609104,-155.0,0.000221,2]
[311594959,1705261609124,-155.0,0.000221,2]
[311594960,1705261609143,-285.19932083,0.000221,2]
[311594961,1705261609163,-384.34681583,0.000221,2]
[311594962,1705261609182,-439.03233222,0.000221,2]
[311594963,1705261611908,285.19932083,0.00022098,2]
[311594964,1705261612093,234.99742603,0.00022098,2]
[311594965,1705261613642,157.45810086,0.00022099,2]
[311594966,1705261615333,1255.31698243,0.00022099,2]
[311594967,1705261615577,208.52721044,0.00022099,2]
[311594968,1705261615985,1888.88421576,0.00022099,2]
[311594969,1705261617004,3856.82715024,0.00022099,2]
[311594970,1705261619072,383.94627706,0.00022099,2]
[311594971,1705261620150,523.58449934,0.00022099,2]
[311594972,1705261620559,155.0,0.00022099,2]
[311594973,1705261622429,155.0,0.00022099,2]
[311594974,1705261622554,75106.63087674,0.00022094,2]
[311594975,1705261626510,115369.19699292,0.00022099,2]
[311594976,1705261635748,542.84892039,0.00022099,2]
[311594977,1705261638704,4623.14199213,0.00022099,2]
[311594978,1705261640111,-5461.16538954,0.000221,2]
[311594979,1705261644272,1913.74997834,0.00022099,2]
[311594980,1705261645374,-13539.73634592,0.000221,2]
[311594981,1705261645393,-758.41453335,0.00022101,2]
[311594982,1705261645413,-411.36312889,0.00022102,2]
[311594983,1705261645433,-523.20663738,0.00022102,2]
[311594984,1705261645453,-235.19352569,0.00022102,2]
[311594985,1705261645472,-161.64433472,0.00022102,2]
[311594986,1705261645525,-158.60896714,0.00022102,2]
[311594987,1705261645544,-317.07020554,0.00022102,2]
[311594988,1705261645564,-201.31667853,0.00022102,2]
[311594989,1705261645586,-764.1829097,0.00022102,2]
[311594990,1705261645606,-155.0376638,0.00022102,2]
[311594991,1705261645626,-171.76196132,0.00022102,2]
[311594992,1705261645645,-479.09505147,0.00022102,2]
[311594993,1705261645664,-241.80971217,0.00022102,2]
[311594994,1705261645684,-333.79010136,0.00022102,2]
[311594995,1705261645704,-234.11386093,0.00022102,2]
[311594996,1705261645723,-336.87437051,0.00022102,2]
[311594997,1705261645742,-310.82733494,0.00022102,2]
[311594998,1705261645761,-2901.32747944,0.00022102,2]
[311594999,1705261645781,-244.75352941,0.00022102,2]
[311595000,1705261645801,-2612.76863363,0.00022102,2]
[311595001,1705261645822,-155.0,0.00022102,2]
[311595002,1705261645842,-278.93891862,0.00022102,2]
[311595003,1705261645861,-155.0,0.00022102,2]
[311595004,1705261645881,-155.54154941,0.00022102,2]
[311595005,1705261645902,-628.42706181,0.00022102,2]
[311595006,1705261645921,-310.24821937,0.00022102,2]
[311595007,1705261645941,-212.14369903,0.00022102,2]
[311595008,1705261645961,-169.10257537,0.00022102,2]
[311595009,1705261645980,-279.12829381,0.00022102,2]
[311595010,1705261646000,-400.25276388,0.00022102,2]
[311595011,1705261646019,-784.5673628,0.00022102,2]
[311595012,1705261646038,-4269.32574779,0.00022102,2]
[311595013,1705261646057,-2618.09134251,0.00022102,2]
[311595014,1705261646079,-476.29501779,0.00022102,2]
[311595015,1705261646101,-269.80513324,0.00022102,2]
[311595016,1705261646123,-401.59293926,0.00022102,2]
[311595017,1705261646141,-2137.87268645,0.00022102,2]
[311595018,1705261646161,-650.38547112,0.00022102,2]
[311595019,1705261646182,-198.90112594,0.00022102,2]
[311595020,1705261646202,-229.73352064,0.00022102,2]
[311595021,1705261646222,-189.81848372,0.00022102,2]
[311595022,1705261646243,-384.34681583,0.00022102,2]
[311595023,1705261646263,-2618.24633513,0.00022102,2]
[311595024,1705261646286,-155.0,0.00022102,2]
[311595025,1705261646308,-367.80860718,0.00022102,2]
[311595026,1705261646331,-1255.31698243,0.00022102,2]
[311595027,1705261646352,-3856.82715024,0.00022102,2]
[311595028,1705261646372,-207.25470025,0.00022102,2]
[311595029,1705261646392,-215.5633422,0.00022102,2]
[311595030,1705261646412,-1888.88421576,0.00022102,2]
[311595031,1705261646431,-523.58449934,0.00022102,2]
[311595032,1705261646451,-157.15232908,0.00022102,2]
[311595033,1705261646471,-167.36261621,0.00022103,2]
[311595034,1705261646491,-198.80388018,0.00022103,2]
[311595035,1705261646513,-155.97034652,0.00022103,2]
[311595036,1705261646532,-604.93182805,0.00022103,2]
[311595037,1705261646552,-291.07829072,0.00022103,2]
[311595038,1705261646573,-360.45961298,0.00022103,2]
[311595039,1705261646593,-737.33403178,0.00022107,2]
[311595040,1705261646616,-152.07,0.00022108,2]
[311595041,1705261646635,-150.0,0.00022164,2]
[311595042,1705261646655,-11684.1358147,0.00022187,2]
[311595043,1705261646674,-150.0,0.00022189,2]
[311595044,1705261646694,-155.0,0.00022192,2]
[311595045,1705261646713,-627.30839662,0.00022192,2]
[311595046,1705261646733,-178.26442698,0.00022192,2]
[311595047,1705261646752,-469.70242892,0.00022192,2]
[311595048,1705261646771,-4310.02565067,0.00022193,2]
[311595049,1705261646790,-188.95625647,0.00022193,2]
[311595050,1705261646809,-500.00466881,0.00022193,2]
[311595051,1705261646830,-154.44948971,0.00022207,2]
[311595052,1705261646856,-152.07,0.00022212,2]
[311595053,1705261646876,-152.07,0.00022316,2]
[311595054,1705261646896,-778.18393707,0.00022356,2]
[311595055,1705261646918,-150.13,0.00022402,2]
[311595056,1705261646938,-152.07,0.0002242,2]
[311595057,1705261646959,-154.4494897,0.00022438,2]
[311595058,1705261646979,-262.94748596,0.00022454,2]
[311595059,1705261647001,-219.85090487,0.00022454,2]
[311595060,1705261647022,-156.07376851,0.00022454,2]
[311595061,1705261647041,-267.65615118,0.00022454,2]
[311595062,1705261647060,-276.45356326,0.00022454,2]
[311595063,1705261647079,-155.0,0.00022454,2]
[311595064,1705261647100,-195.57844609,0.00022454,2]
[311595065,1705261647119,-155.61243303,0.00022454,2]
[311595066,1705261647142,-157.92900519,0.00022454,2]
[311595067,1705261647163,-258.59152982,0.00022454,2]
[311595068,1705261647183,-196.42218781,0.00022454,2]
[311595069,1705261647203,-439.17828871,0.00022454,2]
[311595070,1705261647223,-162.22176007,0.00022455,2]
[311595071,1705261647243,-717.02,0.00022457,2]
[311595072,1705261647265,-737.33403178,0.00022504,2]
[311595073,1705261647286,-152.07,0.00022523,2]
[311595074,1705261647307,-152.07,0.00022627,2]
[311595075,1705261647328,-156.43,0.00022629,2]
[311595076,1705261647348,-3300.0,0.00022669,2]
[311595077,1705261647368,-154.4494897,0.00022669,2]
[311595078,1705261647390,-150.13,0.00022675,2]
[311595079,1705261647410,-497.01,0.00022685,2]
[311595080,1705261647430,-152.07,0.00022731,2]
[311595081,1705261647450,-728.74,0.00022734,2]
[311595082,1705261647471,-715.4,0.00022759,2]
[311595083,1705261647491,-156.0,0.00022766,2]
[311595084,1705261647511,-2041.88927517,0.0002277,2]
[311595085,1705261647532,-737.55,0.0002277,2]
[311595086,1705261647551,-1288.54761334,0.000228,2]
[311595087,1705261649440,336.87437051,0.00022099,2]
[311595088,1705261650364,158.84,0.00021959,2]
[311595089,1705261652079,182.4,0.00021959,10]
[311595090,1705261659641,176.17,0.00022,2]
[311595091,1705261785960,297.68,0.00021733,2]
[311595116,1705261831402,-285.19932083,0.00022214,2]
[311595118,1705261831411,-155.0,0.00022214,2]
[311595121,1705261831422,-595.63743917,0.00022214,2]
[311595123,1705261831466,-373.51188536,0.00022214,2]
[311595124,1705261831536,-271.8973563,0.00022214,2]
[311595125,1705261831549,-3382.0953113,0.00022214,2]
[311595126,1705261831560,-758.41453335,0.00022215,2]
[311595127,1705261831570,-3856.82715024,0.00022216,2]
[311595128,1705261831581,-384.34681583,0.00022216,2]
[311595129,1705261831592,-1653.45157835,0.00022216,2]
[311595130,1705261831609,-260.29839999,0.00022216,2]
[311595131,1705261831619,-2136.20982977,0.00022216,2]
[311595132,1705261831629,-1911.90313155,0.00022216,2]
[311595133,1705261831641,-2721.02693868,0.00022216,2]
[311595134,1705261831650,-524.39183014,0.00022217,2]
[311595135,1705261831659,-915.86222091,0.00022217,2]
[311595136,1705261831669,-1255.31698243,0.00022217,2]
[311595137,1705261831679,-269.80513324,0.00022218,2]
[311595138,1705261831689,-1758.62817655,0.00022218,2]
[311595139,1705261831699,-219.16059588,0.0002222,2]
[311595140,1705261831710,-219.16059571,0.00022256,2]
[311595141,1705261831719,-219.16059571,0.00022292,2]
[311595142,1705261831729,-4269.32574779,0.00022317,2]
[311595144,1705261831739,-1888.88421576,0.00022317,2]
[311595146,1705261831748,-158.84,0.00022325,2]
[311595148,1705261831759,-219.16059571,0.00022327,2]
[311595150,1705261831768,-500.0,0.00022341,2]
[311595151,1705261831777,-219.16059571,0.00022363,2]
[311595152,1705261831787,-219.16059571,0.00022399,2]
[311595154,1705261831796,-219.16059571,0.00022435,2]
[311595156,1705261831805,-219.16059571,0.00022471,2]
[311595158,1705261831814,-219.16059571,0.00022506,2]
[311595159,1705261831823,-219.16059571,0.00022542,2]
[311595160,1705261831833,-176.17,0.00022548,2]
[311595161,1705261831841,-219.16059571,0.00022578,2]
[311595162,1705261831851,-219.16059571,0.00022614,2]
[311595163,1705261831860,-219.16059571,0.00022649,2]
[311595164,1705261831870,-219.16059571,0.00022685,2]
[311595165,1705261831879,-158.84,0.00022691,2]
[311595166,1705261831889,-245.7780106,0.00022696,2]
[311595167,1705261831898,-245.77801059,0.00022697,2]
[311595168,1705261831908,-245.77801059,0.00022697,2]
[311595169,1705261831918,-24164.63317743,0.000227,2]
[311595170,1705261831933,-501.48085518,0.000227,2]
[311595171,1705261831953,-3780.8999886,0.000227,2]
[311595172,1705261831967,-2835.50077879,0.000227,2]
[311595173,1705261831977,-5269.6109,0.000227,2]
[311595174,1705261831986,-709.61,0.00022759,2]
[311595175,1705261831996,-156.0,0.00022766,2]
[311595176,1705261832005,-600.0,0.0002277,2]
[311595177,1705261832015,-155.0,0.00022794,2]
[311595178,1705261832024,-350.48072121,0.00022794,2]
[311595179,1705261837476,-157.47,0.00022143,2]
[311595180,1705261837486,-136.89661831,0.00022213,2]
[311595181,1705261837597,-1072.41174151,0.00022213,2]
[311595182,1705261837610,-218.72753532,0.00022213,2]
[311595183,1705261837619,-295.28510411,0.00022213,2]
[311595184,1705261837629,-628.42706181,0.00022213,2]
[311595185,1705261837638,-269.80513324,0.00022213,2]
[311595186,1705261837648,-93.15508019,0.00022217,2]
[311595187,1705261837678,-66154.03988498,0.00022217,2]
[311595188,1705261837718,-233.03383861,0.00022213,2]
[311595189,1705261837727,-140.26815024,0.00022217,2]
[311595190,1705261837740,-1329.16065339,0.00022217,2]
[311595191,1705261837775,-16104.48841526,0.00022217,2]
[311595192,1705261837787,-1550.61248604,0.00022217,2]
[311595193,1705261838118,2000.0,0.00021924,2]
[311595326,1705261839955,-500.0,0.00022217,2]
[311595328,1705261839971,-4540.57115841,0.00022217,2]
[311595339,1705261840065,-391.0305,0.00022217,2]
[311595341,1705261840076,-388.19382264,0.00022217,2]
[311595344,1705261840088,-24177.67684177,0.00022217,2]
[311595346,1705261840097,-422.08967507,0.00022696,2]
[311595348,1705261840107,-158.1107,0.000227,2]
[311595350,1705261840116,-219.16059571,0.00022721,2]
[311595352,1705261840126,-6499.71140068,0.00022794,2]
[311595354,1705261840135,-16535.41150436,0.00022794,2]
[311595356,1705261840145,-5437.35042652,0.00022794,2]
[311595358,1705261840154,-155.0,0.00022795,2]
[311595360,1705261840164,-42510.98885581,0.00022796,2]
[311595420,1705261840726,-219.16059571,0.00022757,2]
[311595422,1705261840737,-138623.99595879,0.00022796,2]
[311595590,1705261842361,-1850.47031868,0.00022212,2]
[311595593,1705261842373,-927.91734661,0.00022212,2]
[311595595,1705261842382,-422.08967507,0.00022747,2]
[311595597,1705261842391,-9669.27909719,0.00022796,2]
[311595599,1705261842403,-10459.88759999,0.00022796,2]
[311595602,1705261842423,-10190.46958822,0.00022796,2]
[311595604,1705261842432,-235.65900379,0.00022797,2]
[311595606,1705261842442,-403.67230355,0.00022797,2]
[311595608,1705261842451,-326.58918329,0.00022797,2]
[311595610,1705261842461,-155.0,0.00022797,2]
[311595612,1705261842475,-203.1548655,0.00022797,2]
[311595614,1705261842485,-225.78302,0.00022797,2]
[311595616,1705261842495,-445.4206063,0.00022797,2]
[311595618,1705261842504,-531.42040528,0.00022797,2]
[311595620,1705261842513,-210.06424657,0.00022797,2]
[311595622,1705261842523,-175.68153544,0.00022797,2]
[311595624,1705261842532,-409.62669077,0.00022797,2]
[311595626,1705261842542,-2266.72277423,0.00022798,2]
[311595629,1705261842551,-150.0,0.00022799,2]
[311595631,1705261842561,-178.079,0.000228,2]
[311595633,1705261842570,-13672.2132132,0.000228,2]
[311595635,1705261842586,-302.23,0.000228,2]
[311595637,1705261842597,-300.1,0.000228,2]
[311595640,1705261842608,-301.132,0.000228,2]
[311595642,1705261842620,-274.264,0.000228,2]
[311595644,1705261842631,-309.865,0.000228,2]
[311595647,1705261842655,-750.0,0.000228,2]
[311595650,1705261842666,-4014.67535266,0.000228,2]
[311595652,1705261842678,-279.603,0.000228,2]
[311595659,1705261842735,-3406.84450441,0.000228,2]
[311595662,1705261842757,-390.60683015,0.000228,2]
[311595765,1705261845445,-219.16059571,0.00022793,2]
[311595766,1705261845455,-669.67269876,0.00022795,2]
[311595767,1705261845466,-841.71319264,0.00022795,2]
[311595768,1705261845476,-2115.34929958,0.000228,2]
[311595769,1705261845485,-8973.3595,0.000228,2]
[311595770,1705261845494,-1000.0,0.000228,2]
[311595772,1705261845504,-800.0,0.00022815,2]
[311595774,1705261845513,-39.36916531,0.00022816,2]
[311595777,1705261845533,-723.11627174,0.00022816,2]
[311595779,1705261845544,-37.51456295,0.00022816,2]
[311595782,1705261845559,-152.07,0.00022835,2]
[311595784,1705261845572,-1500.0,0.00022875,2]
[311595786,1705261845584,-442.19651274,0.00022894,2]
[311595789,1705261845597,-201.65621762,0.00022894,2]
[311595795,1705261845653,-1.43237306,0.00022894,2]
[311595797,1705261845664,-555.51882767,0.00022894,2]
[311595799,1705261845674,-370.74633075,0.00022894,2]
[311595802,1705261845687,-171.16837717,0.00022894,2]
[311595804,1705261845699,-271.37917941,0.00022894,2]
[311595806,1705261845711,-772.59675676,0.00022894,2]
[311595809,1705261845726,-234.02599441,0.00022894,2]
[311595811,1705261845737,-196.15103659,0.00022894,2]
[311595813,1705261845750,-262.83107516,0.00022894,2]
[311595816,1705261845762,-1806.53837324,0.00022894,2]
[311595818,1705261845774,-358.78751966,0.00022894,2]
[311595821,1705261845786,-157.09777558,0.00022894,2]
[311595824,1705261845798,-12906.23044998,0.00022894,2]
[311595828,1705261845809,-157.87034057,0.00022894,2]
[311595831,1705261845819,-158.14576957,0.00022894,2]
[311595834,1705261845831,-521.39704244,0.00022894,2]
[311595838,1705261845843,-173.09804103,0.00022894,2]
[311595841,1705261845855,-155.0,0.00022896,2]
[311595844,1705261845866,-376.89196963,0.00022896,2]
[311595847,1705261845877,-167.14187597,0.00022896,2]
[311595849,1705261845889,-155.0,0.00022896,2]
[311595851,1705261845900,-2286.39854772,0.00022897,2]
[311595854,1705261845911,-156.67165431,0.00022897,2]
[311595856,1705261845922,-264.58394231,0.00022897,2]
[311595858,1705261845934,-486.39012387,0.00022898,2]
[311595860,1705261845946,-4200.72067427,0.00022898,2]
[311595863,1705261845957,-155.90312244,0.00022898,2]
[311595865,1705261845970,-2314.24604604,0.00022898,2]
[311595867,1705261845981,-500.0,0.00022898,2]
[311595869,1705261845996,-1012.5069,0.00022898,2]
[311595871,1705261846009,-1203.8741,0.000229,2]
[311595874,1705261846020,-1000.0,0.000229,2]
[311595876,1705261846030,-3428.82722284,0.000229,2]
[311595878,1705261846042,-2475.18,0.000229,2]
[311595880,1705261846052,-189.46769378,0.000229,2]
[311595882,1705261846063,-30369.03,0.000229,2]
[311595884,1705261846074,-797.47718876,0.000229,2]
[311595886,1705261846084,-1773.55454829,0.000229,2]
[311595889,1705261846096,-266.92448542,0.000229,2]
[311595891,1705261846107,-152.07,0.00022938,2]
[311595893,1705261846119,-150.13,0.00022949,2]
[311595895,1705261846130,-269.91342988,0.00022989,2]
[311595896,1705261846140,-269.91342988,0.00022989,2]
[311595897,1705261846153,-269.91342988,0.0002299,2]
[311595898,1705261846165,-163.12818694,0.00022995,2]
[311595899,1705261846177,-155.95137878,0.00022995,2]
[311595900,1705261846189,-155.40173906,0.00022995,2]
[311595901,1705261846201,-202.9641373,0.00022995,2]
[311595902,1705261846213,-224.17120298,0.00022995,2]
[311595903,1705261846229,-221.41381807,0.00022995,2]
[311595904,1705261846239,-198.33016733,0.00022995,2]
[311595905,1705261846249,-157.64396862,0.00022995,2]
[311595906,1705261846260,-155.5086803,0.00022995,2]
[311595907,1705261846270,-257.10827248,0.00022995,2]
[311595908,1705261846281,-214.8965107,0.00022995,2]
[311595909,1705261846291,-265.46425197,0.00022995,2]
[311595910,1705261846303,-156.0502567,0.00022995,2]
[311595911,1705261846315,-156.89250485,0.00022995,2]
[311595912,1705261846326,-159.60119728,0.00022995,2]
[311595913,1705261846336,-249.84044134,0.00022995,2]
[311595914,1705261846349,-158.6546966,0.00022995,2]
[311595915,1705261846360,-199.70497621,0.00022995,2]
[311595916,1705261846372,-884.09918832,0.00022995,2]
[311595917,1705261846382,-155.0,0.00022995,2]
[311595918,1705261846392,-270.60037622,0.00022995,2]
[311595919,1705261846403,-3380.70731936,0.00022995,2]
[311595920,1705261846413,-473.57815491,0.00022995,2]
[311595921,1705261846423,-250.102693,0.00022996,2]
[311595922,1705261846433,-495.14061117,0.00022997,2]
[311595923,1705261846444,-3619.50520265,0.00022997,2]
[311595924,1705261846455,-309.58159212,0.00022997,2]
[311595925,1705261846475,-710.97097205,0.00022997,2]
[311595926,1705261846485,-210.92031935,0.00022997,2]
[311595927,1705261846497,-716.5599999,0.00022998,2]
[311595928,1705261846507,-173.80086289,0.00022998,2]
[311595929,1705261846518,-2549.1186126,0.00022998,2]
[311595930,1705261846528,-155.15859743,0.00022998,2]
[311595931,1705261846543,-1702.49340054,0.00022998,2]
[311595932,1705261846554,-451.35943019,0.00022998,2]
[311595933,1705261846564,-2142.99004246,0.00022998,2]
[311595934,1705261846574,-431.12798239,0.00022998,2]
[311595935,1705261846585,-727.18,0.00022999,2]
[311595936,1705261846596,-3293.74903118,0.00022999,2]
[311595937,1705261846606,-150.01,0.00022999,2]
[311595938,1705261846617,-145255.41977335,0.00023,2]
[311595939,1705261847368,-481733.02492783,0.00023,2]
[311595940,1705261847382,-1937.8,0.00023,2]
[311595941,1705261847706,2055.66,0.00021973,2]
[311595942,1705261880601,419.24528077,0.00022078,2]
[311595943,1705261891401,3185.89838635,0.00022076,2]
[311595944,1705261901971,214.12,0.00022062,2]
[311595945,1705261915262,729.30403692,0.00021,2]
[311595946,1705261917342,628.42706181,0.000221,2]
[311595947,1705261918705,295.28510411,0.000221,2]
[311595948,1705261921910,395.40113788,0.00020466,2]
[311595949,1705261949316,1339.00513371,0.00021846,2]
[311595950,1705261951109,490.51,0.00022016,2]
[311595951,1705261962322,155.31624059,0.00020696,2]
[311595952,1705261997276,686.84,0.00021911,2]
[311595953,1705261997891,628.42706181,0.000221,2]
[311595954,1705262026968,6653.0,0.0002,2]
[311595955,1705262033059,23900.0,0.00021872,2]
[311595956,1705262037271,169.56,0.00022036,2]
[311595957,1705262037503,169.56,0.00022097,2]
[311595958,1705262052063,452.61,0.00019799,2]
[311595959,1705262052334,452.61,0.00022063,2]
[311595960,1705262064534,765.0,0.00022,2]
[311595961,1705262070490,150.0,0.00021934,2]
[311595962,1705262088834,535.76,0.00021705,2]
[311595963,1705262093852,156.61,0.00021705,2]
[311595964,1705262172510,1241.01,0.00021665,2]
[311595965,1705262223562,150.0,0.000221,2]
[311595966,1705262226456,178.72,0.00021678,2]
[311595967,1705262245719,1310.06,0.00021625,2]
[311595968,1705262257334,300.0,0.00022001,2]
[311595969,1705262271251,164.37044679,0.00022002,2]
[311595970,1705262272204,351.7,0.00021998,2]
[311595971,1705262299032,3831.29,0.00021598,2]
[311595972,1705262315835,176.84,0.00021594,2]
[311595973,1705262324941,164.28,0.00021594,2]
[311595974,1705262342190,21995.09743377,0.0002208,2]
[311595975,1705262346415,200.0,0.00021629,2]